{"text_format":"1","workbook":"xlsx","n_sheets":3,"sheets":["Sheet1","CEC - W700 REPORT","CEC - W700 Marine"],"not_rendered":{"charts":0,"images":6,"macros":1,"external_links":0,"defined_names":10,"comments":0,"pivot_tables":0},"unopened":[],"bounds":{"document_bytes":16777216,"sheet_cells":100000,"rows_first":2000,"rows_last":500,"rows_between":2000,"halvings":0,"cell_chars":16384,"cell_head_chars":4096},"cells_cut":0,"cells_raw":0,"read":"whole","date_system":"1900"}

{"sheet":"Sheet1","index":0,"n_rows":269,"n_cols":16,"rows_kept":269,"cut":false,"hidden":false,"merged":[]}
[null,null,null,null,"PORT_CITY","PORT_CODE",null,null,null,null,null,"System"]
["Asphalt and Road Oil","931"]
["Aviation: Aviation Gasoline Blending Components","112",null,null,"Amorco - Tesoro Refinery",100,null,null,null,null,null,"BAKERSFIELD","001"]
["Aviation: Commercial Jet Fuel",217,null,null,"Avon - Tesoro Refinery",101,null,null,null,null,null,"EAST","002"]
["Aviation: Finished Aviation Gasoline, Leaded",115,null,null,"Benicia - Valero Coke Dock",102,null,null,null,null,null,"NORTH","003",null,1,{"$f":"IF(OR(O5=\"\",O5=1),\"\",INDEX($L$2:$M$8,O5,2))","v":""}]
["Aviation: Finished Aviation Gasoline, Unleaded",116,null,null,"Benicia - Valero Refinery",103,null,null,null,null,null,"OREGON","004",null,1,{"$f":"IF(OR(O6=\"\",O6=1),\"\",INDEX($L$2:$M$8,O6,2))","v":""}]
["Aviation: Military Jet Fuel - JP-5","221",null,null,"Crockett/Selby - Valero Terminal",104,null,null,null,null,null,"SOUTH","005",null,1,""]
["Aviation: Military Jet Fuel - JP-8","222",null,null,"El Segundo Mooring Buoy - Chevron Refinery",105,null,null,null,null,null,"WEST","006",null,1,""]
["Coal","709",null,null,"Ellwood Mooring Buoy - Venoco",106,null,null,null,null,null,null,null,null,null,""]
["Coke: Petroleum Coke, Calcined","025",null,null,"Eureka - Chevron Terminal",107,null,null,null,null,null,null,null,null,null,""]
["Coke: Petroleum Coke, Marketable","021",null,null,"Long Beach - BP Berth 121",108,null,null,null,null,null,null,null,null,null,""]
["Crude: Alaska","011",null,null,"Long Beach - BP Berth 76-78",109,null,null,null,null,null,null,null,null,null,""]
["Crude: Domestic (Including Alaska)","010",null,null,"Long Beach - Chemoil Berth 209-211",110,null,null,null,null,null,null,null,null,null,""]
["Crude: Foreign","020",null,null,"Long Beach - Koch Carbon Petroleum Coke Berth 211",111,null,null,null,null,null,null,null,null,null,""]
["Cutter Stock","405",null,null,"Long Beach - Metropolitan Stevedore Petroleum Coke Berth 212-215",112,null,null,null,null,null,null,null,null,null,""]
["DFO: Distillate Fuel Oil, <= 500 ppm sulfur, other than No. 2 diesel fuels",468,null,null,"Long Beach - Naval Station",113,null,null,null,null,null,null,null,null,null,""]
["DFO: Distillate Fuel Oil, Greater than 500 ppm sulfur, other than No. 2 diesel fuels",469,null,null,"Long Beach - Petro Diamond Berth 82-83",114,null,null,null,null,null,null,null,null,null,""]
["Diesel: Bio-Diesel - B100",489,null,null,"Long Beach - Shell Berth 84-87",115,null,null,null,null,null,null,null,null,null,""]
["Diesel: Bio-Diesel - B2",485,null,null,"Long Beach - Vopak Berth 101",116,null,null,null,null,null,null,null,null,null,""]
["Diesel: Bio-Diesel - B20",488,null,null,"Los Angeles - ConocoPhillips Berth 148-151",117,null,null,null,null,null,null,null,null,null,""]
["Diesel: Bio-Diesel - B5",487,null,null,"Los Angeles - ExxonMobil Berth 238-240",118,null,null,null,null,null,null,null,null,null,""]
["Diesel: CARB >=15 to 500ppm Sulfur",477,null,null,"Los Angeles - General Petroleum Berth 258",119,null,null,null,null,null,null,null,null,null,""]
["Diesel: CARB ULS <15ppm Sulfur",478,null,null,"Los Angeles - Jankovich Berth 74",120,null,null,null,null,null,null,null,null,null,""]
["Diesel: EPA Highway Diesel (<500ppm and >15ppm sulfur)",480,null,null,"Los Angeles - Kinder Morgan Berth 118",121,null,null,null,null,null,null,null,null,null,""]
["Diesel: EPA Highway ULS Diesel (<15ppm sulfur)",481,null,null,"Los Angeles - Kinder Morgan Berth 120",122,null,null,null,null,null,null,null,null,null,""]
["Diesel: EPA Off Road Diesel",482,null,null,"Los Angeles - LAXT Petroleum Coke Berth 301",123,null,null,null,null,null,null,null,null,null,""]
["Diesel: Fischer-Tropsch Distillate",490,null,null,"Los Angeles - Shell Berth 167-169",124,null,null,{"$f":"IF(OR(H27=\"\",H27=1),\"\",INDEX($E$2:$F$24,H27,2,TRUE))","v":""},null,null,null,null,null,null,""]
["Diesel: High Sulfur Diesel (>=500ppm sulfur)",462,null,null,"Los Angeles - Valero Berth 162-163",125,null,1,"",null,null,null,null,null,null,""]
["Distillate: Kerosene",311,null,null,"Los Angeles - Valero Berth 164",126,null,null,"",null,null,null,null,null,null,""]
["Feedstock: Petrochemical, Naphtha < 401 F endpoint","822",null,null,"Los Angeles - Vopak Berth 187-191",127,null,null,"",null,null,null,null,null,null,""]
["Feedstock: Petrochemical, Other Oils >= 401 F endpoint","824",null,null,"Los Angeles - Westway Berth 70-71",128,null,null,"",null,null,null,null,null,null,""]
["Gasoline: Arizona Cleaner Burning - AZRBOB (for 10% ethanol blends)",172,null,null,"Martinez - Pacific Energy Terminal",129,null,null,"",null,null,null,null,null,null,""]
["Gasoline: Arizona Cleaner Burning - Ethanol (approximately 10% by volume)",174,null,null,"Martinez - Shell Refinery",130,null,null,"",null,null,null,null,null,null,""]
["Gasoline: Arizona Cleaner Burning Gasoline - Non-Oxygenated",170,null,null,"Oakland - Marine Terminals Petroleum Coke Dock",131,null,null,"",null,null,null,null,null,null,""]
["Gasoline: Arizona Conventional Gasoline",173,null,null,"Pittsburg - Koch Carbon Petroleum Coke Dock",132,null,null,"",null,null,null,null,null,null,""]
["Gasoline: CARB  RFG - Non-Oxygenated",162,null,null,"Richmond - BP Terminal",133,null,null,"",null,null,null,null,null,null,""]
["Gasoline: CARB RFG - CARB blended with ethanol",164,null,null,"Richmond - Burmah Castrol Berth",134,null,null,"",null,null,null,null,null,null,""]
["Gasoline: CARBOB (California Reformulated Blendstock for Oxygenate Blending with ethanol)",163,null,null,"Richmond - ConocoPhillips Terminal",135,null,null,"",null,null,null,null,null,null,""]
["Gasoline: Nevada Cleaner Burning - Ethanol (approximately 10% by volume)",183,null,null,"Richmond - General Petroleum Terminal",136,null,null,"",null,null,null,null,null,null,""]
["Gasoline: Nevada Cleaner Burning (Las Vegas specification)",181,null,null,"Richmond - IMTT Terminal",137,null,null,"",null,null,null,null,null,null,""]
["Gasoline: Nevada Conventional (for use outside Las Vegas)",182,null,null,"Richmond - Kinder Morgan Terminal",138,null,null,"",null,null,null,null,null,null,""]
["Gasoline: Nevada LVBOB (for ethanol blending in Las Vegas)",180,null,null,"Richmond - Levin Petroleum Coke Dock",139,null,null,"",null,null,null,null,null,null,""]
["Gasoline: Other Conventional",175,null,null,"Richmond - Pacific Energy Terminal",140,null,null,"",null,null,null,null,null,null,""]
["GBC: Akylate (not including iso-octane)",320,null,null,"Richmond Long Wharf - Chevron Refinery",141,null,null,"",null,null,null,null,null,null,""]
["GBC: Ethyl Tertiary Butyl Ether (ETBE)","142",null,null,"Rodeo/Oleum - ConocoPhillips Refinery",142,null,null,"",null,null,null,null,null,null,""]
["GBC: Fuel Ethanol",141,null,null,"San Diego - DFSP Point Loma",143,null,null,"",null,null,null,null,null,null,""]
["GBC: Hydrocrackate",323,null,null,"San Diego - Jankovich Terminal",144,null,null,"",null,null,null,null,null,null,""]
["GBC: Isomerate",322,null,null,"San Nicolas Island - Naval Offshore Loading Facility",145,null,null,""]
["GBC: Iso-octane/Iso-octene",321,null,null,null,null,null,null,""]
["GBC: MTBE",144,null,null,null,null,null,null,""]
["GBC: Natural Gasoline",324,null,null,null,null,null,null,""]
["GBC: Other Gasoline Blending Components",327,null,null,null,null,null,null,""]
["GBC: Reformate",325,null,null,null,null,null,null,""]
["GBC: Toluene",326,null,null,null,null,null,null,""]
["LPG: Iso-Butane",233,null,null,null,null,null,null,""]
["LPG: Normal Butane",232,null,null,null,null,null,null,""]
["LPG: Pentanes Plus",220,null,null,null,null,null,null,""]
["LPG: Propane",231,null,null,null,null,null,null,""]
["LPG: Propane, Consumer Grade",624,null,null,null,null,null,null,""]
["Lubes: Naphthenic","852",null,null,null,null,null,null,""]
["Lubes: Paraffinic","853",null,null,null,null,null,null,""]
["Marine Fuel",486,null,null,null,null,null,null,""]
["RFO: > 1% Sulfur",510,null,null,null,null,null,null,""]
["RFO: 0.31% to 1.00% Sulfur (incl.)",509,null,null,null,null,null,null,""]
["RFO: Under 0.31% Sulfur",508,null,null,null,null,null,null,""]
["Unf Oils: Carbon Black Oils","851",null,null,null,null,null,null,""]
["Unf Oils: Heavy Gas Oil","840",null,null,null,null,null,null,""]
["Unf Oils: Kerosene and Light Gas Oil","830",null,null,null,null,null,null,""]
["Unf Oils: Naphthas and Lighter","820",null,null,null,null,null,null,""]
["Unf Oils: Other","810",null,null,null,null,null,null,""]
["Unf Oils: Residuum","850",null,null,null,null,null,null,""]
[null,null,null,null,null,null,null,null,""]
[null,null,null,null,null,null,null,null,""]
[null,null,null,null,null,null,null,null,""]
[null,null,null,null,null,null,null,null,""]
[null,null,null,null,null,null,null,null,""]
[null,null,null,null,null,null,null,null,""]
["Pipeline Imports-Exports",null,null,null,null,null,null,null,""]
[null,null,null,null,null,null,null,null,{"$f":"IF(OR(H79=\"\",H79=1),\"\",INDEX($E$2:$F$24,H79,2,TRUE))","v":""}]
["Aviation: Commercial Jet Fuel",217,null,null,null,null,null,null,""]
["Aviation: Military Jet Fuel - JP-5","221",null,null,null,null,null,null,""]
["Aviation: Military Jet Fuel - JP-8","222",null,null,null,null,null,null,""]
["Diesel: Bio-Diesel - B100",489,null,null,null,null,null,null,""]
["Diesel: Bio-Diesel - B2",485,null,null,null,null,null,null,""]
["Diesel: Bio-Diesel - B20",488,null,null,null,null,null,null,""]
["Diesel: Bio-Diesel - B5",487,null,null,null,null,null,null,""]
["Diesel: CARB >=15 to 500ppm Sulfur",477,null,null,null,null,null,null,""]
["Diesel: CARB ULS <15ppm Sulfur",478,null,null,null,null,null,null,""]
["Diesel: EPA Highway Diesel (<500ppm and >15ppm sulfur)",480,null,null,null,null,null,null,""]
["Diesel: EPA Highway ULS Diesel (<15ppm sulfur)",481,null,null,null,null,null,null,""]
["Diesel: EPA Off Road Diesel",482,null,null,null,null,null,null,""]
["Diesel: Fischer-Tropsch Distillate",490,null,null,null,null,null,null,""]
["Diesel: High Sulfur Diesel (>=500ppm sulfur)",462,null,null,null,null,null,null,""]
["Gasoline: Arizona Cleaner Burning - AZRBOB (for 10% ethanol blends)",172,null,null,null,null,null,null,""]
["Gasoline: Arizona Cleaner Burning - Ethanol (approximately 10% by volume)",174,null,null,null,null,null,null,""]
["Gasoline: Arizona Cleaner Burning Gasoline - Non-Oxygenated",170,null,null,null,null,null,null,""]
["Gasoline: Arizona Conventional Gasoline",173,null,null,null,null,null,null,""]
["Gasoline: CARB  RFG - Non-Oxygenated",162,null,null,null,null,null,null,""]
["Gasoline: CARB RFG - CARB blended with ethanol",164,null,null,null,null,null,null,""]
["Gasoline: CARBOB (California Reformulated Blendstock for Oxygenate Blending with ethanol)",163,null,null,null,null,null,null,""]
["Gasoline: Nevada Cleaner Burning - Ethanol (approximately 10% by volume)",183,null,null,null,null,null,null,""]
["Gasoline: Nevada Cleaner Burning (Las Vegas specification)",181,null,null,null,null,null,null,""]
["Gasoline: Nevada Conventional (for use outside Las Vegas)",182,null,null,null,null,null,null,""]
["Gasoline: Nevada LVBOB (for ethanol blending in Las Vegas)",180,null,null,null,null,null,null,""]
["Gasoline: Other Conventional",175,null,null,null,null,null,null,""]
["GBC: Fuel Ethanol",141,null,null,null,null,null,null,""]
["Transmix",900,null,null,null,null,null,null,""]
[null,null,null,null,null,null,null,null,""]
[null,null,null,null,null,null,null,null,""]
["Non-California Delivery by Truck",null,null,null,null,null,null,null,""]
[null,null,null,null,null,null,null,null,""]
["Non-California Fuel: Diesel Fuel","168",null,null,null,null,null,null,""]
["Non-California Fuel: Gasoline","167",null,null,null,null,null,null,""]
[null,null,null,null,null,null,null,null,""]
[null,null,null,null,null,null,null,null,""]
[null,null,null,null,null,null,null,null,""]
[null,null,null,null,null,null,null,null,""]
[null,null,null,null,null,null,null,null,""]
[null,null,null,null,null,null,null,null,""]
[null,null,null,null,null,null,null,null,""]
["Truck Import-Export",null,null,null,null,null,null,null,""]
[null,null,null,null,null,null,null,null,""]
["Asphalt and Road Oil","931",null,null,null,null,null,null,""]
["Aviation: Commercial Jet Fuel",217,null,null,null,null,null,null,""]
["Aviation: Finished Aviation Gasoline, Leaded",115,null,null,null,null,null,null,""]
["Aviation: Finished Aviation Gasoline, Unleaded",116,null,null,null,null,null,null,""]
["Aviation: Military Jet Fuel - JP-5","221",null,null,null,null,null,null,""]
["Aviation: Military Jet Fuel - JP-8","222",null,null,null,null,null,null,""]
["Coke: Petroleum Coke, Calcined","025",null,null,null,null,null,null,""]
["Coke: Petroleum Coke, Marketable","021",null,null,null,null,null,null,""]
["Crude: (include Lease Condensate), TOTAL","050",null,null,null,null,null,null,""]
["DFO: Distillate Fuel Oil, <= 500 ppm sulfur, other than No. 2 diesel fuels",468,null,null,null,null,null,null,""]
["DFO: Distillate Fuel Oil, Greater than 500 ppm sulfur, other than No. 2 diesel fuels",469,null,null,null,null,null,null,""]
["Diesel: Bio-Diesel - B100",489,null,null,null,null,null,null,""]
["Diesel: Bio-Diesel - B2",485,null,null,null,null,null,null,""]
["Diesel: Bio-Diesel - B20",488,null,null,null,null,null,null,""]
["Diesel: Bio-Diesel - B5",487,null,null,null,null,null,null,""]
["Diesel: CARB >=15 to 500ppm Sulfur",477,null,null,null,null,null,null,""]
["Diesel: CARB ULS <15ppm Sulfur",478,null,null,null,null,null,null,""]
["Diesel: EPA Highway Diesel (<500ppm and >15ppm sulfur)",480,null,null,null,null,null,null,""]
["Diesel: EPA Highway ULS Diesel (<15ppm sulfur)",481,null,null,null,null,null,null,""]
["Diesel: EPA Off Road Diesel",482,null,null,null,null,null,null,""]
["Diesel: Fischer-Tropsch Distillate",490,null,null,null,null,null,null,{"$f":"IF(OR(H143=\"\",H143=1),\"\",INDEX($E$2:$F$24,H143,2,TRUE))","v":""}]
["Diesel: High Sulfur Diesel (>=500ppm sulfur)",462,null,null,null,null,null,null,""]
["Distillate: Kerosene",311,null,null,null,null,null,null,""]
["Feedstock: Petrochemical, Naphtha < 401 F endpoint","822",null,null,null,null,null,null,""]
["Feedstock: Petrochemical, Other Oils >= 401 F endpoint","824",null,null,null,null,null,null,""]
["Gasoline: Arizona Cleaner Burning - AZRBOB (for 10% ethanol blends)",172,null,null,null,null,null,null,""]
["Gasoline: Arizona Cleaner Burning - Ethanol (approximately 10% by volume)",174,null,null,null,null,null,null,""]
["Gasoline: Arizona Cleaner Burning Gasoline - Non-Oxygenated",170,null,null,null,null,null,null,""]
["Gasoline: Arizona Conventional Gasoline",173,null,null,null,null,null,null,""]
["Gasoline: CARB  RFG - Non-Oxygenated",162,null,null,null,null,null,null,""]
["Gasoline: CARB RFG - CARB blended with ethanol",164,null,null,null,null,null,null,""]
["Gasoline: CARBOB (California Reformulated Blendstock for Oxygenate Blending with ethanol)",163,null,null,null,null,null,null,""]
["Gasoline: Nevada Cleaner Burning - Ethanol (approximately 10% by volume)",183,null,null,null,null,null,null,""]
["Gasoline: Nevada Cleaner Burning (Las Vegas specification)",181,null,null,null,null,null,null,""]
["Gasoline: Nevada Conventional (for use outside Las Vegas)",182,null,null,null,null,null,null,""]
["Gasoline: Nevada LVBOB (for ethanol blending in Las Vegas)",180,null,null,null,null,null,null,""]
["Gasoline: Other Conventional",175,null,null,null,null,null,null,""]
["GBC: Akylate (not including iso-octane)",320,null,null,null,null,null,null,""]
["GBC: Fuel Ethanol",141,null,null,null,null,null,null,""]
["GBC: Iso-octane/Iso-octene",321,null,null,null,null,null,null,""]
["GBC: Natural Gasoline",324,null,null,null,null,null,null,""]
["GBC: Other Gasoline Blending Components",327,null,null,null,null,null,null,""]
["LPG: Iso-Butane",233,null,null,null,null,null,null,""]
["LPG: Normal Butane",232,null,null,null,null,null,null,""]
["LPG: Pentanes Plus",220,null,null,null,null,null,null,""]
["LPG: Propane",231,null,null,null,null,null,null,""]
["LPG: Propane, Consumer Grade",624,null,null,null,null,null,null,""]
["Marine Fuel",486,null,null,null,null,null,null,""]
["RFO: > 1% Sulfur",510,null,null,null,null,null,null,""]
["RFO: 0.31% to 1.00% Sulfur (incl.)",509,null,null,null,null,null,null,""]
["RFO: Under 0.31% Sulfur",508,null,null,null,null,null,null,""]
["Unf Oils: Carbon Black Oils","851",null,null,null,null,null,null,""]
["Unf Oils: Heavy Gas Oil","840",null,null,null,null,null,null,""]
["Unf Oils: Kerosene and Light Gas Oil","830",null,null,null,null,null,null,""]
["Unf Oils: Naphthas and Lighter","820",null,null,null,null,null,null,""]
["Unf Oils: Other","810",null,null,null,null,null,null,""]
["Unf Oils: Residuum","850",null,null,null,null,null,null,""]
[null,null,null,null,null,null,null,null,""]
[null,null,null,null,null,null,null,null,""]
[null,null,null,null,null,null,null,null,""]
[null,null,null,null,null,null,null,null,""]
[null,null,null,null,null,null,null,null,""]
[null,null,null,null,null,null,null,null,""]
[null,null,null,null,null,null,null,null,""]
["Rail Import-Export",null,null,null,null,null,null,null,""]
[null,null,null,null,null,null,null,null,""]
["Asphalt and Road Oil","931",null,null,null,null,null,null,""]
["Aviation: Commercial Jet Fuel",217,null,null,null,null,null,null,""]
["Aviation: Finished Aviation Gasoline, Leaded",115,null,null,null,null,null,null,""]
["Aviation: Finished Aviation Gasoline, Unleaded",116,null,null,null,null,null,null,""]
["Aviation: Military Jet Fuel - JP-5","221",null,null,null,null,null,null,""]
["Aviation: Military Jet Fuel - JP-8","222",null,null,null,null,null,null,""]
["Coal","709",null,null,null,null,null,null,""]
["Coke: Petroleum Coke, Calcined","025",null,null,null,null,null,null,""]
["Coke: Petroleum Coke, Marketable","021",null,null,null,null,null,null,""]
["Crude: Domestic (Including Alaska)","010",null,null,null,null,null,null,""]
["Crude: Foreign","020",null,null,null,null,null,null,""]
["DFO: Distillate Fuel Oil, <= 500 ppm sulfur, other than No. 2 diesel fuels",468,null,null,null,null,null,null,""]
["DFO: Distillate Fuel Oil, Greater than 500 ppm sulfur, other than No. 2 diesel fuels",469,null,null,null,null,null,null,""]
["Diesel: Bio-Diesel - B100",489,null,null,null,null,null,null,""]
["Diesel: Bio-Diesel - B2",485,null,null,null,null,null,null,""]
["Diesel: Bio-Diesel - B20",488,null,null,null,null,null,null,""]
["Diesel: Bio-Diesel - B5",487,null,null,null,null,null,null,""]
["Diesel: CARB >=15 to 500ppm Sulfur",477,null,null,null,null,null,null,""]
["Diesel: CARB ULS <15ppm Sulfur",478,null,null,null,null,null,null,{"$f":"IF(OR(H207=\"\",H207=1),\"\",INDEX($E$2:$F$24,H207,2,TRUE))","v":""}]
["Diesel: EPA Highway Diesel (<500ppm and >15ppm sulfur)",480,null,null,null,null,null,null,""]
["Diesel: EPA Highway ULS Diesel (<15ppm sulfur)",481,null,null,null,null,null,null,""]
["Diesel: EPA Off Road Diesel",482,null,null,null,null,null,null,""]
["Diesel: Fischer-Tropsch Distillate",490,null,null,null,null,null,null,""]
["Diesel: High Sulfur Diesel (>=500ppm sulfur)",462,null,null,null,null,null,null,""]
["Feedstock: Petrochemical, Naphtha < 401 F endpoint","822",null,null,null,null,null,null,""]
["Feedstock: Petrochemical, Other Oils >= 401 F endpoint","824",null,null,null,null,null,null,""]
["Gasoline: Arizona Cleaner Burning - AZRBOB (for 10% ethanol blends)",172,null,null,null,null,null,null,""]
["Gasoline: Arizona Cleaner Burning - Ethanol (approximately 10% by volume)",174,null,null,null,null,null,null,""]
["Gasoline: Arizona Cleaner Burning Gasoline - Non-Oxygenated",170,null,null,null,null,null,null,""]
["Gasoline: Arizona Conventional Gasoline",173,null,null,null,null,null,null,""]
["Gasoline: CARB  RFG - Non-Oxygenated",162,null,null,null,null,null,null,""]
["Gasoline: CARB RFG - CARB blended with ethanol",164,null,null,null,null,null,null,""]
["Gasoline: CARBOB (California Reformulated Blendstock for Oxygenate Blending with ethanol)",163,null,null,null,null,null,null,""]
["Gasoline: Nevada Cleaner Burning - Ethanol (approximately 10% by volume)",183,null,null,null,null,null,null,""]
["Gasoline: Nevada Cleaner Burning (Las Vegas specification)",181,null,null,null,null,null,null,""]
["Gasoline: Nevada Conventional (for use outside Las Vegas)",182]
["Gasoline: Nevada LVBOB (for ethanol blending in Las Vegas)",180]
["Gasoline: Other Conventional",175]
["GBC: Akylate (not including iso-octane)",320]
["GBC: Fuel Ethanol",141]
["GBC: Iso-octane/Iso-octene",321]
["GBC: Natural Gasoline",324]
["GBC: Other Gasoline Blending Components",327]
["LPG: Iso-Butane",233]
["LPG: Normal Butane",232]
["LPG: Pentanes Plus",220]
["LPG: Propane",231]
["LPG: Propane, Consumer Grade",624]
["Marine Fuel",486]
["RFO: > 1% Sulfur",510]
["RFO: 0.31% to 1.00% Sulfur (incl.)",509]
["RFO: Under 0.31% Sulfur",508]
["Unf Oils: Carbon Black Oils","851"]
["Unf Oils: Heavy Gas Oil","840"]
["Unf Oils: Kerosene and Light Gas Oil","830"]
["Unf Oils: Naphthas and Lighter","820"]
["Unf Oils: Other","810"]
["Unf Oils: Residuum","850"]
[]
[]
[]
[]
[]
[]
[]
["Bunkering"]
[]
["Aviation: Military Jet Fuel - JP-5","221"]
["Aviation: Military Jet Fuel - JP-8","222"]
["DFO: Distillate Fuel Oil, <= 500 ppm sulfur, other than No. 2 diesel fuels",468]
["DFO: Distillate Fuel Oil, Greater than 500 ppm sulfur, other than No. 2 diesel fuels",469]
["Diesel: CARB >=15 to 500ppm Sulfur",477]
["Diesel: CARB ULS <15ppm Sulfur",478]
["Diesel: EPA Highway Diesel (<500ppm and >15ppm sulfur)",480]
["Diesel: EPA Highway ULS Diesel (<15ppm sulfur)",481]
["Diesel: EPA Off Road Diesel",482]
["Diesel: Fischer-Tropsch Distillate",490]
["Marine Fuel",486]
["RFO: > 1% Sulfur",510]
["RFO: 0.31% to 1.00% Sulfur (incl.)",509]
["RFO: Under 0.31% Sulfur",508]

{"sheet":"CEC - W700 REPORT","index":1,"n_rows":122,"n_cols":11,"rows_kept":122,"cut":false,"hidden":false,"merged":[[71,6,71,8],[72,6,72,8],[73,6,73,8],[74,6,74,8],[75,6,75,8],[82,6,82,8],[83,6,83,8],[78,6,78,8],[79,6,79,8],[76,6,76,8],[77,6,77,8],[80,6,80,8],[81,6,81,8],[85,3,85,8],[86,3,86,8],[84,3,84,8],[56,6,56,8],[55,6,55,8],[66,6,66,8],[67,6,67,8],[57,6,57,8],[58,6,58,8],[59,6,59,8],[60,6,60,8],[63,6,63,8],[64,6,64,8],[61,6,61,8],[62,6,62,8],[80,3,80,5],[69,3,69,5],[70,3,70,5],[71,3,71,5],[72,3,72,5],[73,3,73,5],[74,3,74,5],[55,3,55,5],[65,6,65,8],[41,3,41,8],[44,3,44,8],[42,3,42,8],[52,6,52,8],[53,6,53,8],[54,6,54,8],[43,3,43,8],[45,3,45,8],[46,3,46,4],[51,3,51,10],[49,3,49,10],[50,3,50,10],[53,3,53,5],[54,3,54,5],[117,1,117,10],[89,3,89,4],[95,6,95,8],[94,3,94,10],[104,6,104,8],[105,6,105,8],[106,6,106,8],[111,6,111,8],[99,6,99,8],[100,6,100,8],[109,3,109,5],[110,3,110,5],[111,3,111,5],[112,3,112,5],[113,3,113,5],[114,3,114,5],[115,3,115,5],[104,3,104,5],[105,3,105,5],[106,3,106,5],[108,3,108,5],[96,6,96,8],[10,3,10,10],[0,3,0,8],[1,3,1,8],[2,3,2,8],[3,3,3,8],[4,3,4,8],[5,3,5,4],[8,3,8,10],[9,3,9,10],[121,1,121,4],[119,1,119,4],[116,6,116,8],[87,3,87,8],[88,3,88,8],[121,8,121,9],[119,8,119,9],[109,6,109,8],[110,6,110,8],[98,6,98,8],[120,1,120,4],[118,1,118,4],[118,8,118,9],[120,8,120,9],[101,6,101,8],[102,6,102,8],[115,6,115,8],[103,6,103,8],[112,6,112,8],[113,6,113,8],[114,6,114,8],[107,6,107,8],[108,6,108,8],[116,3,116,5],[12,4,12,5],[13,4,13,5],[14,4,14,5],[15,4,15,5],[16,4,16,5],[17,4,17,5],[18,4,18,5],[19,4,19,5],[20,4,20,5],[21,4,21,5],[22,4,22,5],[23,4,23,5],[24,4,24,5],[26,4,26,5],[27,4,27,5],[28,4,28,5],[29,4,29,5],[30,4,30,5],[31,4,31,5],[32,4,32,5],[33,4,33,5],[34,4,34,5],[35,4,35,5],[36,4,36,5],[37,4,37,5],[38,4,38,5],[39,4,39,5],[40,4,40,5],[101,3,101,5],[61,3,61,5],[62,3,62,5],[63,3,63,5],[93,3,93,10],[102,3,102,5],[103,3,103,5],[96,3,96,5],[97,3,97,5],[98,3,98,5],[99,3,99,5],[100,3,100,5],[92,3,92,10],[68,6,68,8],[69,6,69,8],[70,6,70,8],[97,6,97,8],[64,3,64,5],[65,3,65,5],[66,3,66,5],[67,3,67,5],[68,3,68,5],[79,3,79,5],[82,3,82,5],[83,3,83,5],[56,3,56,5],[57,3,57,5],[81,3,81,5],[75,3,75,5],[76,3,76,5],[77,3,77,5],[78,3,78,5],[58,3,58,5],[59,3,59,5],[60,3,60,5]]}
[null,"California Energy Commission"]
[null,"1516 9th Street, MS 20",null,"California Imports, Exports, and Intrastate Movements"]
[null,"Sacramento, CA  95814",null,"Weekly Report"]
[null,"Ph. 916-651-0466 Fax 916-654-4753",null,"CEC Form W700 (rev. 6/30/16) pg 1 of 3"]
[null,"E-mail: piira@energy.ca.gov"]
[]
[null,null,null,null,null,null,null,null,null,"Report Period:"]
[]
[null,"Company Name:"]
[null,"Company ID Number:"]
[null,"Company Address:"]
[null,"Marine Imports From Foreign & Domestic Sources"]
[null,"Product Description","Product Code","Discharge Date","Vessel Name",null,"Discharge Port","Port Code","Country/State of Origin","Port(s) of Origin","Volume (000's of Barrels)"]
[null,"",{"$f":"IF(B14=\"\",\"\",VLOOKUP(B14,Full_PC_List,2,TRUE))","v":""},null,"N/A",null,"",{"$f":"IF(G14=\"\",\"\",VLOOKUP(G14,Sheet1!$E$2:$F$48,2,TRUE))","v":""},"N/A","N/A"]
[null,null,"",null,"N/A",null,null,{"$f":"IF(G15=\"\",\"\",VLOOKUP(G15,Sheet1!$E$2:$F$48,2,TRUE))","v":""},"N/A","N/A"]
[null,null,"",null,"N/A",null,null,{"$f":"IF(G16=\"\",\"\",VLOOKUP(G16,Sheet1!$E$2:$F$48,2,TRUE))","v":""},"N/A","N/A"]
[null,"","",null,"N/A",null,null,{"$f":"IF(G17=\"\",\"\",VLOOKUP(G17,Sheet1!$E$2:$F$48,2,TRUE))","v":""},"N/A","N/A"]
[null,"","",null,"N/A",null,null,{"$f":"IF(G18=\"\",\"\",VLOOKUP(G18,Sheet1!$E$2:$F$48,2,TRUE))","v":""},"N/A","N/A"]
[null,"","",null,"N/A",null,"",{"$f":"IF(G19=\"\",\"\",VLOOKUP(G19,Sheet1!$E$2:$F$48,2,TRUE))","v":""},"N/A","N/A"]
[null,null,"",null,"N/A",null,null,{"$f":"IF(G20=\"\",\"\",VLOOKUP(G20,Sheet1!$E$2:$F$48,2,TRUE))","v":""},"N/A","N/A"]
[null,"","",null,"N/A",null,"",{"$f":"IF(G21=\"\",\"\",VLOOKUP(G21,Sheet1!$E$2:$F$48,2,TRUE))","v":""},"N/A","N/A"]
[null,null,"",null,"N/A",null,"",{"$f":"IF(G22=\"\",\"\",VLOOKUP(G22,Sheet1!$E$2:$F$48,2,TRUE))","v":""},"N/A","N/A"]
[null,null,"",null,"N/A",null,"",{"$f":"IF(G23=\"\",\"\",VLOOKUP(G23,Sheet1!$E$2:$F$48,2,TRUE))","v":""},"N/A","N/A"]
[null,null,"",null,"N/A",null,null,{"$f":"IF(G24=\"\",\"\",VLOOKUP(G24,Sheet1!$E$2:$F$48,2,TRUE))","v":""},"N/A","N/A"]
[null,null,"",null,"N/A",null,null,{"$f":"IF(G25=\"\",\"\",VLOOKUP(G25,Sheet1!$E$2:$F$48,2,TRUE))","v":""},"N/A","N/A"]
[null,"Marine Exports To Foreign & Domestic Destinations"]
[null,"Product Description","Product Code","Load Date","Vessel Name",null,"Load Port","Port Code","Destination Country/State","Destination Port","Volume (000's of Barrels)"]
[null,null,{"$f":"IF(B28=\"\",\"\",VLOOKUP(B28,Full_PC_List,2,TRUE))","v":""},null,"N/A",null,"",{"$f":"IF(G28=\"\",\"\",VLOOKUP(G28,Sheet1!$E$2:$F$48,2,TRUE))","v":""},"N/A","N/A"]
[null,null,"",null,"N/A",null,null,{"$f":"IF(G29=\"\",\"\",VLOOKUP(G29,Sheet1!$E$2:$F$48,2,TRUE))","v":""},"N/A","N/A"]
[null,"","",null,"N/A",null,null,{"$f":"IF(G30=\"\",\"\",VLOOKUP(G30,Sheet1!$E$2:$F$48,2,TRUE))","v":""},"N/A","N/A"]
[null,null,"",null,"N/A",null,null,{"$f":"IF(G31=\"\",\"\",VLOOKUP(G31,Sheet1!$E$2:$F$48,2,TRUE))","v":""},"N/A","N/A"]
[null,null,"",null,"N/A",null,null,{"$f":"IF(G32=\"\",\"\",VLOOKUP(G32,Sheet1!$E$2:$F$48,2,TRUE))","v":""},"N/A","N/A"]
[null,null,"",null,"N/A",null,null,{"$f":"IF(G33=\"\",\"\",VLOOKUP(G33,Sheet1!$E$2:$F$48,2,TRUE))","v":""},"N/A","N/A"]
[null,null,"",null,"N/A",null,"",{"$f":"IF(G34=\"\",\"\",VLOOKUP(G34,Sheet1!$E$2:$F$48,2,TRUE))","v":""},"N/A","N/A"]
[null,null,"",null,"N/A",null,null,{"$f":"IF(G35=\"\",\"\",VLOOKUP(G35,Sheet1!$E$2:$F$48,2,TRUE))","v":""},"N/A","N/A"]
[null,null,"",null,"N/A",null,null,{"$f":"IF(G36=\"\",\"\",VLOOKUP(G36,Sheet1!$E$2:$F$48,2,TRUE))","v":""},"N/A","N/A"]
[null,null,"",null,"N/A",null,null,{"$f":"IF(G37=\"\",\"\",VLOOKUP(G37,Sheet1!$E$2:$F$48,2,TRUE))","v":""},"N/A","N/A"]
[null,null,"",null,"N/A",null,"",{"$f":"IF(G38=\"\",\"\",VLOOKUP(G38,Sheet1!$E$2:$F$48,2,TRUE))","v":""},"N/A","N/A"]
[null,null,"",null,"N/A",null,null,{"$f":"IF(G39=\"\",\"\",VLOOKUP(G39,Sheet1!$E$2:$F$48,2,TRUE))","v":""},"N/A","N/A"]
[null,null,"",null,"N/A",null,"",{"$f":"IF(G40=\"\",\"\",VLOOKUP(G40,Sheet1!$E$2:$F$48,2,TRUE))","v":""},"N/A","N/A"]
[null,null,"",null,"N/A",null,"",{"$f":"IF(G41=\"\",\"\",VLOOKUP(G41,Sheet1!$E$2:$F$48,2,TRUE))","v":""},"N/A","N/A"]
[null,"California Energy Commission"]
[null,"1516 9th Street, MS 20",null,"California Imports, Exports, and Intrastate Movements"]
[null,"Sacramento, CA  95814",null,"Weekly Report"]
[null,"Ph. 916-651-0466 Fax 916-654-4753",null,"CEC Form W700 (rev. 6/30/16) pg 2 of 3"]
[null,"E-mail: piira@energy.ca.gov"]
[]
[null,null,null,null,null,null,null,null,null,"Report Period:",{"$f":"IF(K7=\"\",\"\",K7)","v":""}]
[]
[null,"Company Name:",null,{"$f":"IF(D9=\"\",\"\",D9)","v":""}]
[null,"Company ID Number:",null,{"$f":"IF(D10=\"\",\"\",D10)","v":""}]
[null,"Company Address:",null,{"$f":"IF(D11=\"\",\"\",D11)","v":""}]
[null,"Pipeline Exports"]
[null,"Product Description","Product Code","Pipeline Name",null,null,"Product Regrade (if applicable)",null,null,"Name of Delivery Terminal","Volume (000's of Barrels)"]
[null,"",{"$f":"IF(B55=\"\",\"\",VLOOKUP(B55,Sheet1!$A$79:$B$107,2,TRUE))","v":""},{"$f":"Sheet1!P5","v":""}]
[null,null,{"$f":"IF(B56=\"\",\"\",VLOOKUP(B56,Sheet1!$A$79:$B$107,2,TRUE))","v":""},{"$f":"Sheet1!P6","v":""}]
[null,null,{"$f":"IF(B57=\"\",\"\",VLOOKUP(B57,Sheet1!$A$79:$B$107,2,TRUE))","v":""},{"$f":"Sheet1!P7","v":""}]
[null,null,{"$f":"IF(B58=\"\",\"\",VLOOKUP(B58,Sheet1!$A$79:$B$107,2,TRUE))","v":""},{"$f":"Sheet1!P8","v":""}]
[null,"",{"$f":"IF(B59=\"\",\"\",VLOOKUP(B59,Sheet1!$A$79:$B$107,2,TRUE))","v":""},{"$f":"Sheet1!P9","v":""}]
[null,null,{"$f":"IF(B60=\"\",\"\",VLOOKUP(B60,Sheet1!$A$79:$B$107,2,TRUE))","v":""},{"$f":"Sheet1!P10","v":""}]
[null,null,{"$f":"IF(B61=\"\",\"\",VLOOKUP(B61,Sheet1!$A$79:$B$107,2,TRUE))","v":""},{"$f":"Sheet1!P11","v":""}]
[null,null,{"$f":"IF(B62=\"\",\"\",VLOOKUP(B62,Sheet1!$A$79:$B$107,2,TRUE))","v":""},{"$f":"Sheet1!P12","v":""}]
[null,"",{"$f":"IF(B63=\"\",\"\",VLOOKUP(B63,Sheet1!$A$79:$B$107,2,TRUE))","v":""},{"$f":"Sheet1!P13","v":""}]
[null,null,{"$f":"IF(B64=\"\",\"\",VLOOKUP(B64,Sheet1!$A$79:$B$107,2,TRUE))","v":""},{"$f":"Sheet1!P14","v":""}]
[null,null,{"$f":"IF(B65=\"\",\"\",VLOOKUP(B65,Sheet1!$A$79:$B$107,2,TRUE))","v":""},{"$f":"Sheet1!P15","v":""}]
[null,null,{"$f":"IF(B66=\"\",\"\",VLOOKUP(B66,Sheet1!$A$79:$B$107,2,TRUE))","v":""},{"$f":"Sheet1!P16","v":""}]
[null,null,{"$f":"IF(B67=\"\",\"\",VLOOKUP(B67,Sheet1!$A$79:$B$107,2,TRUE))","v":""},{"$f":"Sheet1!P17","v":""}]
[null,null,{"$f":"IF(B68=\"\",\"\",VLOOKUP(B68,Sheet1!$A$79:$B$107,2,TRUE))","v":""},{"$f":"Sheet1!P18","v":""}]
[null,null,{"$f":"IF(B69=\"\",\"\",VLOOKUP(B69,Sheet1!$A$79:$B$107,2,TRUE))","v":""},{"$f":"Sheet1!P19","v":""}]
[null,null,{"$f":"IF(B70=\"\",\"\",VLOOKUP(B70,Sheet1!$A$79:$B$107,2,TRUE))","v":""},{"$f":"Sheet1!P20","v":""}]
[null,null,{"$f":"IF(B71=\"\",\"\",VLOOKUP(B71,Sheet1!$A$79:$B$107,2,TRUE))","v":""},{"$f":"Sheet1!P21","v":""}]
[null,null,{"$f":"IF(B72=\"\",\"\",VLOOKUP(B72,Sheet1!$A$79:$B$107,2,TRUE))","v":""},{"$f":"Sheet1!P22","v":""}]
[null,null,{"$f":"IF(B73=\"\",\"\",VLOOKUP(B73,Sheet1!$A$79:$B$107,2,TRUE))","v":""},{"$f":"Sheet1!P23","v":""}]
[null,null,{"$f":"IF(B74=\"\",\"\",VLOOKUP(B74,Sheet1!$A$79:$B$107,2,TRUE))","v":""},{"$f":"Sheet1!P24","v":""}]
[null,null,{"$f":"IF(B75=\"\",\"\",VLOOKUP(B75,Sheet1!$A$79:$B$107,2,TRUE))","v":""},{"$f":"Sheet1!P25","v":""}]
[null,null,{"$f":"IF(B76=\"\",\"\",VLOOKUP(B76,Sheet1!$A$79:$B$107,2,TRUE))","v":""},{"$f":"Sheet1!P26","v":""}]
[null,"",{"$f":"IF(B77=\"\",\"\",VLOOKUP(B77,Sheet1!$A$79:$B$107,2,TRUE))","v":""},{"$f":"Sheet1!P27","v":""}]
[null,null,{"$f":"IF(B78=\"\",\"\",VLOOKUP(B78,Sheet1!$A$79:$B$107,2,TRUE))","v":""},{"$f":"Sheet1!P28","v":""}]
[null,null,{"$f":"IF(B79=\"\",\"\",VLOOKUP(B79,Sheet1!$A$79:$B$107,2,TRUE))","v":""},{"$f":"Sheet1!P29","v":""}]
[null,null,{"$f":"IF(B80=\"\",\"\",VLOOKUP(B80,Sheet1!$A$79:$B$107,2,TRUE))","v":""},{"$f":"Sheet1!P30","v":""}]
[null,null,{"$f":"IF(B81=\"\",\"\",VLOOKUP(B81,Sheet1!$A$79:$B$107,2,TRUE))","v":""},{"$f":"Sheet1!P31","v":""}]
[null,null,{"$f":"IF(B82=\"\",\"\",VLOOKUP(B82,Sheet1!$A$79:$B$107,2,TRUE))","v":""},{"$f":"Sheet1!P32","v":""}]
[null,null,{"$f":"IF(B83=\"\",\"\",VLOOKUP(B83,Sheet1!$A$79:$B$107,2,TRUE))","v":""},{"$f":"Sheet1!P33","v":""}]
[null,null,{"$f":"IF(B84=\"\",\"\",VLOOKUP(B84,Sheet1!$A$79:$B$107,2,TRUE))","v":""},{"$f":"Sheet1!P34","v":""}]
[null,"California Energy Commission"]
[null,"1516 9th Street, MS 20",null,"California Imports, Exports, and Intrastate Movements"]
[null,"Sacramento, CA  95814",null,"Weekly Report"]
[null,"Ph. 916-651-0466 Fax 916-654-4753",null,"CEC Form W700 (rev. 6/30/16) pg 3 of 3"]
[null,"E-mail: piira@energy.ca.gov"]
[]
[null,null,null,null,null,null,null,null,null,"Report Period:",{"$f":"IF(K7=\"\",\"\",K7)","v":""}]
[]
[null,"Company Name:",null,{"$f":"IF(D9=\"\",\"\",D9)","v":""}]
[null,"Company ID Number:",null,{"$f":"IF(D10=\"\",\"\",D10)","v":""}]
[null,"Company Address:",null,{"$f":"IF(D11=\"\",\"\",D11)","v":""}]
[null,"Rail Imports From Foreign & Domestic Sources"]
[null,"Product Description","Product Code","Discharge Date",null,null,"Discharge Location",null,null,"State or Country of Origin","Volume (000's of Barrels)"]
[null,"",{"$f":"IF(B98=\"\",\"\",VLOOKUP(B98,Sheet1!$A$188:$B$246,2,TRUE))","v":""},null,null,null,null,null,null,"N/A"]
[null,"",{"$f":"IF(B99=\"\",\"\",VLOOKUP(B99,Sheet1!$A$188:$B$246,2,TRUE))","v":""},null,null,null,null,null,null,"N/A"]
[null,null,{"$f":"IF(B100=\"\",\"\",VLOOKUP(B100,Sheet1!$A$188:$B$246,2,TRUE))","v":""},null,null,null,null,null,null,"N/A"]
[null,null,{"$f":"IF(B101=\"\",\"\",VLOOKUP(B101,Sheet1!$A$188:$B$246,2,TRUE))","v":""},null,null,null,null,null,null,"N/A"]
[null,null,{"$f":"IF(B102=\"\",\"\",VLOOKUP(B102,Sheet1!$A$188:$B$246,2,TRUE))","v":""},null,null,null,null,null,null,"N/A"]
[null,null,{"$f":"IF(B103=\"\",\"\",VLOOKUP(B103,Sheet1!$A$188:$B$246,2,TRUE))","v":""},null,null,null,null,null,null,"N/A"]
[null,null,{"$f":"IF(B104=\"\",\"\",VLOOKUP(B104,Sheet1!$A$188:$B$246,2,TRUE))","v":""},null,null,null,null,null,null,"N/A"]
[null,null,{"$f":"IF(B105=\"\",\"\",VLOOKUP(B105,Sheet1!$A$188:$B$246,2,TRUE))","v":""},null,null,null,null,null,null,"N/A"]
[null,null,{"$f":"IF(B106=\"\",\"\",VLOOKUP(B106,Sheet1!$A$188:$B$246,2,TRUE))","v":""},null,null,null,null,null,null,"N/A"]
[null,null,{"$f":"IF(B107=\"\",\"\",VLOOKUP(B107,Sheet1!$A$188:$B$246,2,TRUE))","v":""},null,null,null,null,null,null,"N/A"]
[null,"Rail Exports To Foreign & Domestic Destinations"]
[null,"Product Description","Product Code","Load Date",null,null,"Load Location",null,null,"Destination State or Country","Volume (000's of Barrels)"]
[null,null,{"$f":"IF(B110=\"\",\"\",VLOOKUP(B110,Sheet1!$A$188:$B$246,2,TRUE))","v":""},null,null,null,null,null,null,"N/A"]
[null,"",{"$f":"IF(B111=\"\",\"\",VLOOKUP(B111,Sheet1!$A$188:$B$246,2,TRUE))","v":""},null,null,null,null,null,null,"N/A"]
[null,"",{"$f":"IF(B112=\"\",\"\",VLOOKUP(B112,Sheet1!$A$188:$B$246,2,TRUE))","v":""},null,null,null,null,null,null,"N/A"]
[null,null,{"$f":"IF(B113=\"\",\"\",VLOOKUP(B113,Sheet1!$A$188:$B$246,2,TRUE))","v":""},null,null,null,null,null,null,"N/A"]
[null,null,{"$f":"IF(B114=\"\",\"\",VLOOKUP(B114,Sheet1!$A$188:$B$246,2,TRUE))","v":""},null,null,null,null,null,null,"N/A"]
[null,null,{"$f":"IF(B115=\"\",\"\",VLOOKUP(B115,Sheet1!$A$188:$B$246,2,TRUE))","v":""},null,null,null,null,null,null,"N/A"]
[null,null,{"$f":"IF(B116=\"\",\"\",VLOOKUP(B116,Sheet1!$A$188:$B$246,2,TRUE))","v":""},null,null,null,null,null,null,"N/A"]
[null,null,{"$f":"IF(B117=\"\",\"\",VLOOKUP(B117,Sheet1!$A$188:$B$246,2,TRUE))","v":""},null,null,null,null,null,null,"N/A"]
[null,"This report contains proprietary and trade secret information and is customarily treated as confidential by this company. The disclosure of this information would result in competitive hardship. Therefore, pursuant to Public Resources Code sections 25213, 25218(e), 25364 and Title 20, California Code of Regulations, section 1370 our company is requesting that all information submitted on this form be kept confidential. I certify under penalty of perjury that the information contained in this report is true, correct, and complete to the best of my knowledge. I am authorized to make this report on behalf of my company."]
[]
[null,"Name, Title & email address",null,null,null,null,null,null,"Telephone Number"]
[]
[null,"Signature",null,null,null,null,null,null,"Date Filed"]

{"sheet":"CEC - W700 Marine","index":2,"n_rows":122,"n_cols":11,"rows_kept":122,"cut":false,"hidden":false,"merged":[[0,3,0,8],[1,3,1,8],[2,3,2,8],[3,3,3,8],[4,3,4,8],[5,3,5,4],[8,3,8,10],[9,3,9,10],[10,3,10,10],[12,4,12,5],[13,4,13,5],[14,4,14,5],[15,4,15,5],[16,4,16,5],[17,4,17,5],[18,4,18,5],[19,4,19,5],[20,4,20,5],[21,4,21,5],[22,4,22,5],[23,4,23,5],[24,4,24,5],[67,4,67,5],[68,4,68,5],[34,4,34,5],[35,4,35,5],[36,4,36,5],[37,4,37,5],[38,4,38,5],[39,4,39,5],[25,4,25,5],[26,4,26,5],[27,4,27,5],[28,4,28,5],[29,4,29,5],[30,4,30,5],[31,4,31,5],[32,4,32,5],[33,4,33,5],[55,4,55,5],[56,4,56,5],[57,4,57,5],[40,4,40,5],[41,4,41,5],[121,4,121,5],[42,4,42,5],[43,4,43,5],[44,4,44,5],[45,4,45,5],[46,4,46,5],[47,4,47,5],[48,4,48,5],[49,4,49,5],[50,4,50,5],[51,4,51,5],[52,4,52,5],[53,4,53,5],[73,4,73,5],[74,4,74,5],[54,4,54,5],[58,4,58,5],[59,4,59,5],[81,4,81,5],[82,4,82,5],[79,4,79,5],[80,4,80,5],[60,4,60,5],[61,4,61,5],[62,4,62,5],[63,4,63,5],[64,4,64,5],[65,4,65,5],[77,4,77,5],[78,4,78,5],[75,4,75,5],[76,4,76,5],[69,4,69,5],[70,4,70,5],[71,4,71,5],[72,4,72,5],[87,4,87,5],[88,4,88,5],[89,4,89,5],[90,4,90,5],[83,4,83,5],[84,4,84,5],[85,4,85,5],[86,4,86,5],[91,4,91,5],[92,4,92,5],[93,4,93,5],[94,4,94,5],[95,4,95,5],[96,4,96,5],[97,4,97,5],[98,4,98,5],[99,4,99,5],[100,4,100,5],[101,4,101,5],[102,4,102,5],[103,4,103,5],[104,4,104,5],[105,4,105,5],[106,4,106,5],[107,4,107,5],[108,4,108,5],[109,4,109,5],[110,4,110,5],[111,4,111,5],[112,4,112,5],[113,4,113,5],[114,4,114,5],[119,4,119,5],[120,4,120,5],[115,4,115,5],[116,4,116,5],[117,4,117,5],[118,4,118,5]]}
[null,"California Energy Commission"]
[null,"1516 9th Street, MS 23",null,"California Imports, Exports, and Intrastate Movements"]
[null,"Sacramento, CA 95814",null,"Weekly Report"]
[null,"Ph. 916-654-4868 Fax 916-654-4753",null,"CEC Form W700 (rev. 3/1/06) pg 1 of 3"]
[null,"E-mail: piira@energy.state.ca.us"]
[]
[null,null,null,null,null,null,null,null,null,"Report Period:"]
[]
[null,"Company Name:"]
[null,"Company ID Number:"]
[null,"Company Address:"]
[null,"Marine Imports From Foreign & Domestic Sources"]
[null,"Product Description","Product Code","Discharge Date","Vessel Name",null,"Discharge Port","Port Code","Country/State of Origin","Port(s) of Origin","Volume (000's of Barrels)"]
[null,"",{"$f":"IF(B14=\"\",\"\",VLOOKUP(B14,Full_PC_List,2,TRUE))","v":""},null,"N/A",null,"",{"$f":"IF(G14=\"\",\"\",VLOOKUP(G14,Sheet1!$E$2:$F$48,2,TRUE))","v":""},"N/A","N/A"]
[null,null,"",null,"N/A",null,null,{"$f":"IF(G15=\"\",\"\",VLOOKUP(G15,Sheet1!$E$2:$F$48,2,TRUE))","v":""},"N/A","N/A"]
[null,null,"",null,"N/A",null,null,{"$f":"IF(G16=\"\",\"\",VLOOKUP(G16,Sheet1!$E$2:$F$48,2,TRUE))","v":""},"N/A","N/A"]
[null,"","",null,"N/A",null,null,{"$f":"IF(G17=\"\",\"\",VLOOKUP(G17,Sheet1!$E$2:$F$48,2,TRUE))","v":""},"N/A","N/A"]
[null,"","",null,"N/A",null,null,{"$f":"IF(G18=\"\",\"\",VLOOKUP(G18,Sheet1!$E$2:$F$48,2,TRUE))","v":""},"N/A","N/A"]
[null,"","",null,"N/A",null,"",{"$f":"IF(G19=\"\",\"\",VLOOKUP(G19,Sheet1!$E$2:$F$48,2,TRUE))","v":""},"N/A","N/A"]
[null,null,"",null,"N/A",null,null,{"$f":"IF(G20=\"\",\"\",VLOOKUP(G20,Sheet1!$E$2:$F$48,2,TRUE))","v":""},"N/A","N/A"]
[null,"","",null,"N/A",null,"",{"$f":"IF(G21=\"\",\"\",VLOOKUP(G21,Sheet1!$E$2:$F$48,2,TRUE))","v":""},"N/A","N/A"]
[null,null,"",null,"N/A",null,"",{"$f":"IF(G22=\"\",\"\",VLOOKUP(G22,Sheet1!$E$2:$F$48,2,TRUE))","v":""},"N/A","N/A"]
[null,null,"",null,"N/A",null,"",{"$f":"IF(G23=\"\",\"\",VLOOKUP(G23,Sheet1!$E$2:$F$48,2,TRUE))","v":""},"N/A","N/A"]
[null,"","",null,"N/A",null,"",{"$f":"IF(G24=\"\",\"\",VLOOKUP(G24,Sheet1!$E$2:$F$48,2,TRUE))","v":""},"N/A","N/A"]
[null,null,"",null,"N/A",null,"",{"$f":"IF(G25=\"\",\"\",VLOOKUP(G25,Sheet1!$E$2:$F$48,2,TRUE))","v":""},"N/A","N/A"]
[null,null,"",null,"N/A",null,"",{"$f":"IF(G26=\"\",\"\",VLOOKUP(G26,Sheet1!$E$2:$F$48,2,TRUE))","v":""},"N/A","N/A"]
[null,null,"",null,"N/A",null,"",{"$f":"IF(G27=\"\",\"\",VLOOKUP(G27,Sheet1!$E$2:$F$48,2,TRUE))","v":""},"N/A","N/A"]
[null,null,"",null,"N/A",null,"",{"$f":"IF(G28=\"\",\"\",VLOOKUP(G28,Sheet1!$E$2:$F$48,2,TRUE))","v":""},"N/A","N/A"]
[null,null,"",null,"N/A",null,"",{"$f":"IF(G29=\"\",\"\",VLOOKUP(G29,Sheet1!$E$2:$F$48,2,TRUE))","v":""},"N/A","N/A"]
[null,null,"",null,"N/A",null,"",{"$f":"IF(G30=\"\",\"\",VLOOKUP(G30,Sheet1!$E$2:$F$48,2,TRUE))","v":""},"N/A","N/A"]
[null,null,"",null,"N/A",null,"",{"$f":"IF(G31=\"\",\"\",VLOOKUP(G31,Sheet1!$E$2:$F$48,2,TRUE))","v":""},"N/A","N/A"]
[null,null,"",null,"N/A",null,"",{"$f":"IF(G32=\"\",\"\",VLOOKUP(G32,Sheet1!$E$2:$F$48,2,TRUE))","v":""},"N/A","N/A"]
[null,"","",null,"N/A",null,"",{"$f":"IF(G33=\"\",\"\",VLOOKUP(G33,Sheet1!$E$2:$F$48,2,TRUE))","v":""},"N/A","N/A"]
[null,"","",null,"N/A",null,"",{"$f":"IF(G34=\"\",\"\",VLOOKUP(G34,Sheet1!$E$2:$F$48,2,TRUE))","v":""},"N/A","N/A"]
[null,"","",null,"N/A",null,"",{"$f":"IF(G35=\"\",\"\",VLOOKUP(G35,Sheet1!$E$2:$F$48,2,TRUE))","v":""},"N/A","N/A"]
[null,null,"",null,"N/A",null,"",{"$f":"IF(G36=\"\",\"\",VLOOKUP(G36,Sheet1!$E$2:$F$48,2,TRUE))","v":""},"N/A","N/A"]
[null,null,"",null,"N/A",null,"",{"$f":"IF(G37=\"\",\"\",VLOOKUP(G37,Sheet1!$E$2:$F$48,2,TRUE))","v":""},"N/A","N/A"]
[null,null,"",null,"N/A",null,"",{"$f":"IF(G38=\"\",\"\",VLOOKUP(G38,Sheet1!$E$2:$F$48,2,TRUE))","v":""},"N/A","N/A"]
[null,"","",null,"N/A",null,"",{"$f":"IF(G39=\"\",\"\",VLOOKUP(G39,Sheet1!$E$2:$F$48,2,TRUE))","v":""},"N/A","N/A"]
[null,null,"",null,"N/A",null,"",{"$f":"IF(G40=\"\",\"\",VLOOKUP(G40,Sheet1!$E$2:$F$48,2,TRUE))","v":""},"N/A","N/A"]
[null,null,"",null,"N/A",null,"",{"$f":"IF(G41=\"\",\"\",VLOOKUP(G41,Sheet1!$E$2:$F$48,2,TRUE))","v":""},"N/A","N/A"]
[null,null,"",null,"N/A",null,"",{"$f":"IF(G42=\"\",\"\",VLOOKUP(G42,Sheet1!$E$2:$F$48,2,TRUE))","v":""},"N/A","N/A"]
[null,null,"",null,"N/A",null,"",{"$f":"IF(G43=\"\",\"\",VLOOKUP(G43,Sheet1!$E$2:$F$48,2,TRUE))","v":""},"N/A","N/A"]
[null,null,"",null,"N/A",null,"",{"$f":"IF(G44=\"\",\"\",VLOOKUP(G44,Sheet1!$E$2:$F$48,2,TRUE))","v":""},"N/A","N/A"]
[null,null,"",null,"N/A",null,"",{"$f":"IF(G45=\"\",\"\",VLOOKUP(G45,Sheet1!$E$2:$F$48,2,TRUE))","v":""},"N/A","N/A"]
[null,null,"",null,"N/A",null,"",{"$f":"IF(G46=\"\",\"\",VLOOKUP(G46,Sheet1!$E$2:$F$48,2,TRUE))","v":""},"N/A","N/A"]
[null,null,"",null,"N/A",null,"",{"$f":"IF(G47=\"\",\"\",VLOOKUP(G47,Sheet1!$E$2:$F$48,2,TRUE))","v":""},"N/A","N/A"]
[null,null,"",null,"N/A",null,"",{"$f":"IF(G48=\"\",\"\",VLOOKUP(G48,Sheet1!$E$2:$F$48,2,TRUE))","v":""},"N/A","N/A"]
[null,null,"",null,"N/A",null,"",{"$f":"IF(G49=\"\",\"\",VLOOKUP(G49,Sheet1!$E$2:$F$48,2,TRUE))","v":""},"N/A","N/A"]
[null,null,"",null,"N/A",null,"",{"$f":"IF(G50=\"\",\"\",VLOOKUP(G50,Sheet1!$E$2:$F$48,2,TRUE))","v":""},"N/A","N/A"]
[null,null,"",null,"N/A",null,"",{"$f":"IF(G51=\"\",\"\",VLOOKUP(G51,Sheet1!$E$2:$F$48,2,TRUE))","v":""},"N/A","N/A"]
[null,null,"",null,"N/A",null,"",{"$f":"IF(G52=\"\",\"\",VLOOKUP(G52,Sheet1!$E$2:$F$48,2,TRUE))","v":""},"N/A","N/A"]
[null,null,"",null,"N/A",null,"",{"$f":"IF(G53=\"\",\"\",VLOOKUP(G53,Sheet1!$E$2:$F$48,2,TRUE))","v":""},"N/A","N/A"]
[null,null,"",null,"N/A",null,"",{"$f":"IF(G54=\"\",\"\",VLOOKUP(G54,Sheet1!$E$2:$F$48,2,TRUE))","v":""},"N/A","N/A"]
[null,null,"",null,"N/A",null,"",{"$f":"IF(G55=\"\",\"\",VLOOKUP(G55,Sheet1!$E$2:$F$48,2,TRUE))","v":""},"N/A","N/A"]
[null,null,"",null,"N/A",null,"",{"$f":"IF(G56=\"\",\"\",VLOOKUP(G56,Sheet1!$E$2:$F$48,2,TRUE))","v":""},"N/A","N/A"]
[null,null,"",null,"N/A",null,"",{"$f":"IF(G57=\"\",\"\",VLOOKUP(G57,Sheet1!$E$2:$F$48,2,TRUE))","v":""},"N/A","N/A"]
[null,null,"",null,"N/A",null,"",{"$f":"IF(G58=\"\",\"\",VLOOKUP(G58,Sheet1!$E$2:$F$48,2,TRUE))","v":""},"N/A","N/A"]
[null,null,"",null,"N/A",null,"",{"$f":"IF(G59=\"\",\"\",VLOOKUP(G59,Sheet1!$E$2:$F$48,2,TRUE))","v":""},"N/A","N/A"]
[null,null,"",null,"N/A",null,"",{"$f":"IF(G60=\"\",\"\",VLOOKUP(G60,Sheet1!$E$2:$F$48,2,TRUE))","v":""},"N/A","N/A"]
[null,null,"",null,"N/A",null,"",{"$f":"IF(G61=\"\",\"\",VLOOKUP(G61,Sheet1!$E$2:$F$48,2,TRUE))","v":""},"N/A","N/A"]
[null,null,"",null,"N/A",null,"",{"$f":"IF(G62=\"\",\"\",VLOOKUP(G62,Sheet1!$E$2:$F$48,2,TRUE))","v":""},"N/A","N/A"]
[null,null,"",null,"N/A",null,"",{"$f":"IF(G63=\"\",\"\",VLOOKUP(G63,Sheet1!$E$2:$F$48,2,TRUE))","v":""},"N/A","N/A"]
[null,null,"",null,"N/A",null,"",{"$f":"IF(G64=\"\",\"\",VLOOKUP(G64,Sheet1!$E$2:$F$48,2,TRUE))","v":""},"N/A","N/A"]
[null,null,"",null,"N/A",null,"",{"$f":"IF(G65=\"\",\"\",VLOOKUP(G65,Sheet1!$E$2:$F$48,2,TRUE))","v":""},"N/A","N/A"]
[null,null,"",null,"N/A",null,"",{"$f":"IF(G66=\"\",\"\",VLOOKUP(G66,Sheet1!$E$2:$F$48,2,TRUE))","v":""},"N/A","N/A"]
[null,"Marine Exports To Foreign & Domestic Destinations"]
[null,"","Product Code","Load Date","Vessel Name",null,"Load Port","Port Code","Destination Country/State","Destination Port","Volume (000's of Barrels)"]
[null,null,{"$f":"IF(B69=\"\",\"\",VLOOKUP(B69,Full_PC_List,2,TRUE))","v":""},null,"N/A",null,null,{"$f":"IF(G69=\"\",\"\",VLOOKUP(G69,Sheet1!$E$2:$F$48,2,TRUE))","v":""},"N/A","N/A"]
[null,null,"",null,"N/A",null,null,{"$f":"IF(G70=\"\",\"\",VLOOKUP(G70,Sheet1!$E$2:$F$48,2,TRUE))","v":""},"N/A","N/A"]
[null,"","",null,"N/A",null,null,{"$f":"IF(G71=\"\",\"\",VLOOKUP(G71,Sheet1!$E$2:$F$48,2,TRUE))","v":""},"N/A","N/A"]
[null,null,"",null,"N/A",null,null,{"$f":"IF(G72=\"\",\"\",VLOOKUP(G72,Sheet1!$E$2:$F$48,2,TRUE))","v":""},"N/A","N/A"]
[null,null,"",null,"N/A",null,null,{"$f":"IF(G73=\"\",\"\",VLOOKUP(G73,Sheet1!$E$2:$F$48,2,TRUE))","v":""},"N/A","N/A"]
[null,null,"",null,"N/A",null,null,{"$f":"IF(G74=\"\",\"\",VLOOKUP(G74,Sheet1!$E$2:$F$48,2,TRUE))","v":""},"N/A","N/A"]
[null,null,"",null,"N/A",null,"",{"$f":"IF(G75=\"\",\"\",VLOOKUP(G75,Sheet1!$E$2:$F$48,2,TRUE))","v":""},"N/A","N/A"]
[null,null,"",null,"N/A",null,null,{"$f":"IF(G76=\"\",\"\",VLOOKUP(G76,Sheet1!$E$2:$F$48,2,TRUE))","v":""},"N/A","N/A"]
[null,null,"",null,"N/A",null,null,{"$f":"IF(G77=\"\",\"\",VLOOKUP(G77,Sheet1!$E$2:$F$48,2,TRUE))","v":""},"N/A","N/A"]
[null,null,"",null,"N/A",null,null,{"$f":"IF(G78=\"\",\"\",VLOOKUP(G78,Sheet1!$E$2:$F$48,2,TRUE))","v":""},"N/A","N/A"]
[null,null,"",null,"N/A",null,"",{"$f":"IF(G79=\"\",\"\",VLOOKUP(G79,Sheet1!$E$2:$F$48,2,TRUE))","v":""},"N/A","N/A"]
[null,null,"",null,"N/A",null,null,{"$f":"IF(G80=\"\",\"\",VLOOKUP(G80,Sheet1!$E$2:$F$48,2,TRUE))","v":""},"N/A","N/A"]
[null,null,"",null,"N/A",null,"",{"$f":"IF(G81=\"\",\"\",VLOOKUP(G81,Sheet1!$E$2:$F$48,2,TRUE))","v":""},"N/A","N/A"]
[null,null,"",null,"N/A",null,null,{"$f":"IF(G82=\"\",\"\",VLOOKUP(G82,Sheet1!$E$2:$F$48,2,TRUE))","v":""},"N/A","N/A"]
[null,null,"",null,"N/A",null,null,{"$f":"IF(G83=\"\",\"\",VLOOKUP(G83,Sheet1!$E$2:$F$48,2,TRUE))","v":""},"N/A","N/A"]
[null,null,"",null,"N/A",null,null,{"$f":"IF(G84=\"\",\"\",VLOOKUP(G84,Sheet1!$E$2:$F$48,2,TRUE))","v":""},"N/A","N/A"]
[null,null,"",null,"N/A",null,null,{"$f":"IF(G85=\"\",\"\",VLOOKUP(G85,Sheet1!$E$2:$F$48,2,TRUE))","v":""},"N/A","N/A"]
[null,null,"",null,"N/A",null,null,{"$f":"IF(G86=\"\",\"\",VLOOKUP(G86,Sheet1!$E$2:$F$48,2,TRUE))","v":""},"N/A","N/A"]
[null,null,"",null,"N/A",null,null,{"$f":"IF(G87=\"\",\"\",VLOOKUP(G87,Sheet1!$E$2:$F$48,2,TRUE))","v":""},"N/A","N/A"]
[null,null,"",null,"N/A",null,null,{"$f":"IF(G88=\"\",\"\",VLOOKUP(G88,Sheet1!$E$2:$F$48,2,TRUE))","v":""},"N/A","N/A"]
[null,null,"",null,"N/A",null,null,{"$f":"IF(G89=\"\",\"\",VLOOKUP(G89,Sheet1!$E$2:$F$48,2,TRUE))","v":""},"N/A","N/A"]
[null,null,"",null,"N/A",null,null,{"$f":"IF(G90=\"\",\"\",VLOOKUP(G90,Sheet1!$E$2:$F$48,2,TRUE))","v":""},"N/A","N/A"]
[null,null,"",null,"N/A",null,null,{"$f":"IF(G91=\"\",\"\",VLOOKUP(G91,Sheet1!$E$2:$F$48,2,TRUE))","v":""},"N/A","N/A"]
[null,null,"",null,"N/A",null,null,{"$f":"IF(G92=\"\",\"\",VLOOKUP(G92,Sheet1!$E$2:$F$48,2,TRUE))","v":""},"N/A","N/A"]
[null,null,"",null,"N/A",null,null,{"$f":"IF(G93=\"\",\"\",VLOOKUP(G93,Sheet1!$E$2:$F$48,2,TRUE))","v":""},"N/A","N/A"]
[null,null,"",null,"N/A",null,null,{"$f":"IF(G94=\"\",\"\",VLOOKUP(G94,Sheet1!$E$2:$F$48,2,TRUE))","v":""},"N/A","N/A"]
[null,null,"",null,"N/A",null,null,{"$f":"IF(G95=\"\",\"\",VLOOKUP(G95,Sheet1!$E$2:$F$48,2,TRUE))","v":""},"N/A","N/A"]
[null,null,"",null,"N/A",null,null,{"$f":"IF(G96=\"\",\"\",VLOOKUP(G96,Sheet1!$E$2:$F$48,2,TRUE))","v":""},"N/A","N/A"]
[null,null,"",null,"N/A",null,null,{"$f":"IF(G97=\"\",\"\",VLOOKUP(G97,Sheet1!$E$2:$F$48,2,TRUE))","v":""},"N/A","N/A"]
[null,null,"",null,"N/A",null,null,{"$f":"IF(G98=\"\",\"\",VLOOKUP(G98,Sheet1!$E$2:$F$48,2,TRUE))","v":""},"N/A","N/A"]
[null,null,"",null,"N/A",null,null,{"$f":"IF(G99=\"\",\"\",VLOOKUP(G99,Sheet1!$E$2:$F$48,2,TRUE))","v":""},"N/A","N/A"]
[null,null,"",null,"N/A",null,null,{"$f":"IF(G100=\"\",\"\",VLOOKUP(G100,Sheet1!$E$2:$F$48,2,TRUE))","v":""},"N/A","N/A"]
[null,null,"",null,"N/A",null,null,{"$f":"IF(G101=\"\",\"\",VLOOKUP(G101,Sheet1!$E$2:$F$48,2,TRUE))","v":""},"N/A","N/A"]
[null,null,"",null,"N/A",null,null,{"$f":"IF(G102=\"\",\"\",VLOOKUP(G102,Sheet1!$E$2:$F$48,2,TRUE))","v":""},"N/A","N/A"]
[null,null,"",null,"N/A",null,null,{"$f":"IF(G103=\"\",\"\",VLOOKUP(G103,Sheet1!$E$2:$F$48,2,TRUE))","v":""},"N/A","N/A"]
[null,null,"",null,"N/A",null,null,{"$f":"IF(G104=\"\",\"\",VLOOKUP(G104,Sheet1!$E$2:$F$48,2,TRUE))","v":""},"N/A","N/A"]
[null,null,"",null,"N/A",null,null,{"$f":"IF(G105=\"\",\"\",VLOOKUP(G105,Sheet1!$E$2:$F$48,2,TRUE))","v":""},"N/A","N/A"]
[null,"","",null,"N/A",null,null,{"$f":"IF(G106=\"\",\"\",VLOOKUP(G106,Sheet1!$E$2:$F$48,2,TRUE))","v":""},"N/A","N/A"]
[null,null,"",null,"N/A",null,null,{"$f":"IF(G107=\"\",\"\",VLOOKUP(G107,Sheet1!$E$2:$F$48,2,TRUE))","v":""},"N/A","N/A"]
[null,null,"",null,"N/A",null,null,{"$f":"IF(G108=\"\",\"\",VLOOKUP(G108,Sheet1!$E$2:$F$48,2,TRUE))","v":""},"N/A","N/A"]
[null,null,"",null,"N/A",null,null,{"$f":"IF(G109=\"\",\"\",VLOOKUP(G109,Sheet1!$E$2:$F$48,2,TRUE))","v":""},"N/A","N/A"]
[null,null,"",null,"N/A",null,null,{"$f":"IF(G110=\"\",\"\",VLOOKUP(G110,Sheet1!$E$2:$F$48,2,TRUE))","v":""},"N/A","N/A"]
[null,null,"",null,"N/A",null,null,{"$f":"IF(G111=\"\",\"\",VLOOKUP(G111,Sheet1!$E$2:$F$48,2,TRUE))","v":""},"N/A","N/A"]
[null,null,"",null,"N/A",null,null,{"$f":"IF(G112=\"\",\"\",VLOOKUP(G112,Sheet1!$E$2:$F$48,2,TRUE))","v":""},"N/A","N/A"]
[null,null,"",null,"N/A",null,null,{"$f":"IF(G113=\"\",\"\",VLOOKUP(G113,Sheet1!$E$2:$F$48,2,TRUE))","v":""},"N/A","N/A"]
[null,null,"",null,"N/A",null,null,{"$f":"IF(G114=\"\",\"\",VLOOKUP(G114,Sheet1!$E$2:$F$48,2,TRUE))","v":""},"N/A","N/A"]
[null,null,"",null,"N/A",null,null,{"$f":"IF(G115=\"\",\"\",VLOOKUP(G115,Sheet1!$E$2:$F$48,2,TRUE))","v":""},"N/A","N/A"]
[null,null,"",null,"N/A",null,"",{"$f":"IF(G116=\"\",\"\",VLOOKUP(G116,Sheet1!$E$2:$F$48,2,TRUE))","v":""},"N/A","N/A"]
[null,null,"",null,"N/A",null,null,{"$f":"IF(G117=\"\",\"\",VLOOKUP(G117,Sheet1!$E$2:$F$48,2,TRUE))","v":""},"N/A","N/A"]
[null,null,"",null,"N/A",null,null,{"$f":"IF(G118=\"\",\"\",VLOOKUP(G118,Sheet1!$E$2:$F$48,2,TRUE))","v":""},"N/A","N/A"]
[null,null,"",null,"N/A",null,null,{"$f":"IF(G119=\"\",\"\",VLOOKUP(G119,Sheet1!$E$2:$F$48,2,TRUE))","v":""},"N/A","N/A"]
[null,null,"",null,"N/A",null,"",{"$f":"IF(G120=\"\",\"\",VLOOKUP(G120,Sheet1!$E$2:$F$48,2,TRUE))","v":""},"N/A","N/A"]
[null,null,"",null,"N/A",null,null,{"$f":"IF(G121=\"\",\"\",VLOOKUP(G121,Sheet1!$E$2:$F$48,2,TRUE))","v":""},"N/A","N/A"]
[null,null,"",null,"N/A",null,"",{"$f":"IF(G122=\"\",\"\",VLOOKUP(G122,Sheet1!$E$2:$F$48,2,TRUE))","v":""},"N/A","N/A"]